[Event "Fagernes Chess GM-Swiss 2024"]
[Site "Fagernes"]
[Date "2024.03.25"]
[Round "2"]
[White "Kenneskog, Theodor"]
[Black "Pranav Anand"]
[Result "0-1"]
[ECO "B90"]
[WhiteElo "2358"]
[BlackElo "2519"]
[Annotator "TA"]
[PlyCount "102"]
[EventDate "2024.03.25"]
[EventType "swiss"]
[EventCountry "NOR"]
[SourceTitle "playchess.com"]
[Source "ChessBase"]
[SourceQuality "1"]
[TimeControl "40/6000+30:2400+30"]

{[%evp 61,102,32,79,80,80,32,50,0,40,0,0,-116,-77,-72,-27,-99,-66,-56,27,41,189,189,287,350,337,-478,-418,-543,133,133,69,-837,-848,-1014,-979,-29988,-29981,-29979,-1675,-6688,-3265,-29979,-4794]} 1. e4 {[%emt 0:00:04]} c5 {[%emt 0:00:21]} 2. Nf3 {[%emt 0:00:15]} d6 {[%emt 0:00:17]} 3. d4 {[%emt 0:00:25]} cxd4 {[%emt 0:00:06]} 4. Nxd4 {[%emt 0:00:05]} Nf6 {[%emt 0:00:05]} 5. Nc3 {[%emt 0:00:04]} a6 {[%emt 0:00:05]} 6. Be3 {[%emt 0:00:38]} e5 {[%emt 0:00:07]} 7. Nb3 {[%emt 0:00:04]} Be6 {[%emt 0:00:05]} 8. f3 {[%emt 0:00:06]} h5 {[%emt 0:00:05]} 9. Nd5 {[%emt 0:00:20] B90: Sizilianisch (Najdorf-Variante, Abweichungen).} Bxd5 {[%emt 0:00:15]} 10. exd5 {[%emt 0:00:06]} Nbd7 {[%emt 0:00:04]} 11. Qd2 {[%emt 0:00:07]} g6 {[%emt 0:00:04]} 12. O-O-O {[%emt 0:00:24]} Bg7 {[%emt 0:00:05]} 13. Kb1 {[%emt 0:00:44]} Rc8 $1 {[%emt 0:00:10][%mdl 4] ist inzwischen erfolgreicher als 13...Qc7.} 14. c4 {[%emt 0:12:10]} b6 {[%emt 0:04:12]} 15. Be2 {[%emt 0:04:44]} O-O {[%emt 0:06:00]} 16. g4 {[%emt 0:09:26]} a5 $146 {[%emt 0:08:16]} ({Predecessor:} 16... e4 17. gxh5 exf3 18. Bxf3 Ne5 19. Qg2 Nxf3 20. Qxf3 Nxh5 21. Rc1 Re8 22. Rhf1 Qc7 {½-½ Laine,E (2178)-Traut,G (2194) W-ch WS/M/882 email 2023}) 17. g5 {[%emt 0:28:16]} Nh7 {[%emt 0:00:29]} 18. Na1 {[%emt 0:00:33]} Nc5 {[%emt 0:04:23]} 19. Nc2 {[%emt 0:00:15]} Na4 {[%emt 0:04:44]} 20. b3 {[%emt 0:10:53]} Nc5 {[%emt 0:00:22]} 21. Na3 {[%emt 0:00:22]} f5 {[%emt 0:24:41]} 22. Nb5 {[%emt 0:03:26]} Qd7 {[%emt 0:03:08]} 23. h4 {[%emt 0:02:34]} Rfe8 {[%emt 0:01:51]} 24. Rde1 {[%emt 0:06:18]} Nf8 {[%emt 0:05:49]} 25. Bd1 {[%emt 0:04:03]} Bh8 {[%emt 0:04:12]} 26. Bc2 {[%emt 0:01:20]} Qe7 {[%emt 0:03:48]} 27. Bd4 {[%emt 0:03:18]} Nfd7 {[%emt 0:02:00]} 28. Bb2 {[%emt 0:01:24]} Qf8 {[%emt 0:03:18]} 29. Re2 {[%emt 0:02:14]} Na6 {[%emt 0:00:42]} 30. a3 {[%emt 0:08:34]} Ndc5 {[%emt 0:03:18]} 31. b4 {[%emt 0:02:16]} axb4 {[%emt 0:00:29]} (31... Nd7 $14 {kam in Betracht.}) 32. axb4 $16 {[%emt 0:00:03]} Nd7 {[%emt 0:00:36]} 33. Bb3 {[%emt 0:02:20]} (33. Na3 $16) 33... Ra8 $14 {[%emt 0:02:37]} 34. Rhe1 {[%emt 0:01:36]} (34. Kc2 $14) 34... Kh7 {[%emt 0:01:56]} 35. Bc2 {[%emt 0:01:53]} Rec8 {[%emt 0:05:27]} 36. Bd3 {[%emt 0:00:07]} (36. Bb3 $1 $11 {war der einzige Weg, das Gleichgewicht zu halten.}) 36... Nc7 $1 $17 {[%emt 0:00:35]} 37. Nd4 {[%emt 0:04:40]} Re8 {[%emt 0:02:55]} (37... b5 {wäre vielleicht verwirrender.} 38. c5 dxc5 39. Nxf5 c4) 38. Nb3 {[%emt 0:02:23]} (38. Nc6 $11 {hält das Gleichgewicht.}) 38... b5 {[%emt 0:04:34]} 39. c5 {[%emt 0:00:09]} (39. cxb5 Nxd5 40. Na5 (40. Bc4 Nf4 $17) 40... Nf4 $11) 39... dxc5 {[%emt 0:01:30]} ({Günstiger ist} 39... Bg7 $15) 40. d6 $1 $11 {[%emt 0:00:53]} Na6 {[%emt 0:13:14]} (40... Qxd6 $2 41. Bxf5 Qxd2 42. Rxd2 $18) (40... Ne6 $14 41. Bxb5 Red8) 41. Bxb5 $18 {[%emt 0:05:21]} Qf7 {[%emt 0:11:01] [#]} (41... Red8 $142) 42. Bxd7 $1 $18 {[%emt 0:06:37]} Nxb4 {[%emt 0:13:55]} 43. Nc1 $4 {[%emt 0:04:42][%mdl 8192]} (43. Bxe8 Qxb3 $17) (43. Nxc5 $18 {nur so kann Weiss gewinnen.} Qa2+ 44. Kc1) 43... Qxd7 $19 {[%emt 0:03:28]} 44. Bxe5 {[%emt 0:02:50]} Rab8 $2 {[%emt 0:03:51] [#]} (44... Rxe5 $19 45. Rxe5 Bg7) 45. Bxh8 $1 $16 {[%emt 0:04:09]} (45. Nb3 Bxe5 46. Rxe5 Rxe5 47. Rxe5 Nc6 $19) 45... Nd3+ {[%emt 0:08:10]} 46. Ka1 $2 {[%emt 0:15:02][%mdl 8192]} (46. Bb2 $14 Rxe2 (46... Rxb2+ $2 {verliert.} 47. Qxb2 Rxe2 48. Rxe2 $18) 47. Qxe2 (47. Rxe2 Nxb2 $17) 47... Nxb2 (47... Rxb2+ $2 48. Qxb2 Nxe1 49. Qb8 $18) 48. Qe7+ Qxe7 49. Rxe7+ Kg8 50. Kc2) 46... Nxe1 $19 {[%emt 0:01:48]} 47. Bb2 {[%emt 0:02:18]} Nxf3 {[%emt 0:00:39]} 48. Qf4 {[%emt 0:03:21]} Nd4 {[%emt 0:00:47]} 49. Rd2 {[%emt 0:00:36]} Re6 {[%emt 0:01:05]} (49... Nb3+ $142 50. Nxb3 Rxb3 (50... Rb4 $2 51. Qf1 $19) 51. Ka2 Re4 52. Qxe4 Rxb2+ (52... fxe4 $2 53. Kxb3 e3 54. Rd1 $19) 53. Kxb2 fxe4 54. Rd1 e3 55. Kc1 e2 56. Re1 Qxd6 57. Rxe2 Qf4+ 58. Rd2 Qxh4 59. Rd7+ Kg8 60. Rd8+ Kf7 61. Rd7+ Ke6 62. Ra7 Qxg5+ 63. Kc2 h4 64. Rh7 Qe3 65. Kb2 h3 66. Ka2 Qg3 67. Kb2 h2 68. Kc2 Qg2+ 69. Kd3 h1=Q (69... h1=R 70. Rxh1 Qxh1 71. Ke2 Qe4+ 72. Kf1 Kf5 73. Kf2 Kg4 74. Kg1 Qe2 75. Kh1 Kg3 76. Kg1 Qg2#) (69... Qd5+ 70. Ke3 h1=Q 71. Rxh1 Qxh1 72. Ke2 Qd5 73. Kf2 Qd2+ 74. Kg3 Kf5 75. Kf3 g5 76. Kg3 g4 77. Kh4 Qh2#) 70. Rxh1 Qxh1 71. Kd2 Qf3 72. Kc2 Kd5 73. Kb2 Kc4 74. Kb1 Kc3 75. Ka1 Qf2 76. Kb1 Qb2#) 50. Bxd4 {[%emt 0:00:29]} Re4 {[%emt 0:00:30]} 51. Qf2 {[%emt 0:00:32]} cxd4 {[%emt 0:00:15]} (51... Rxd4 $142 52. Rxd4 cxd4 (52... Qa7+ $2 53. Qa2 $19) 53. Qa2 d3 (53... Qxd6 54. Qa7+ Kh8 55. Nd3 $19) 54. Nxd3 Qg7+ (54... Qxd6 $2 55. Qf7+ Kh8 56. Qf6+ Qxf6+ 57. gxf6 $19) (54... Qb7 $2 55. Nb4 $19) 55. Qb2 Rxb2 56. Nxb2 Qd4 57. Kb1 Qxd6 58. Kc2 Qh2+ 59. Kc3 Qxh4 60. Kd3 Qxg5 61. Nc4 h4 62. Ne5 h3 63. Nf3 Qf4 64. Ke2 Qg3 (64... h2 {ist ein Selbstmatt.} 65. Nxh2 Qxh2+ 66. Kd3 f4 67. Ke4 Qd2 68. Ke5 f3 69. Ke6 f2 70. Ke7 f1=Q 71. Ke8 Qfe2+ 72. Kf8 Qf4#) 65. Ke3 h2 66. Kd4 Qxf3 (66... h1=R {wird mattgesetzt.} 67. Ne5 Rd1+ 68. Kc4 Qxe5 69. Kb4 Qb2+ 70. Kc4 Qc2+ 71. Kb5 Rb1+ 72. Ka6 Qa4#) (66... h1=Q 67. Nd2 Qd6+ 68. Kc4 Qc1+ 69. Kb5 Qcc6+ 70. Ka5 Qxd2#) 67. Kc4 h1=Q (67... h1=B 68. Kb4 Qc6 69. Ka5 Be4 70. Kb4 Bd5 71. Ka5 Qc5+ 72. Ka6 Qb4 73. Ka7 Qb7#) 68. Kb4 Qb7+ 69. Kc4 Qhe4+ 70. Kc5 Qed5#) 0-1

[Event "Fagernes Chess GM-Swiss 2024"]
[Site "Fagernes"]
[Date "2024.03.25"]
[Round "2"]
[White "Nielsen, Viktor Haarmark"]
[Black "Can, Isik"]
[Result "1/2-1/2"]
[ECO "D12"]
[WhiteElo "2351"]
[BlackElo "2493"]
[Annotator "TA"]
[PlyCount "207"]
[EventDate "2024.03.25"]
[EventType "swiss"]
[EventCountry "NOR"]
[SourceTitle "playchess.com"]
[Source "ChessBase"]
[SourceQuality "1"]
[TimeControl "40/6000+30:2400+30"]

{[%evp 15,207,20,19,0,2,10,0,11,14,15,12,0,34,21,28,26,44,22,34,33,27,24,41,39,35,37,43,43,42,13,23,0,10,-8,0,0,0,-31,-26,-21,-24,-18,-8,-8,21,25,26,0,0,0,9,3,58,79,69,11,70,-8,-8,-25,-40,-26,-22,-41,-8,-8,-8,-8,-8,-8,-6,-8,0,0,0,-62,-8,-8,-8,-68,-68,-68,-60,-67,-67,-68,-22,-23,-22,-67,-67,-68,-68,-68,-68,-68,-68,-68,-68,-68,-68,-68,-68,-67,-67,-68,-68,-69,-67,-72,-72,-72,-67,-72,-72,-72,-72,-72,-72,-72,-72,-72,-72,-72,-62,-61,-36,-36,-36,-36,-36,-69,-36,-36,-36,-36,-36,-36,-36,-36,-36,-69,-36,-36,-36,-36,-36,-69,-36,-36,-36,-36,-36,-36,-36,-36,-36,-36,-36,-36,-8,-8,-8,-8,-8,-8,-8,-8,-8,-8,0,0,0,0,0,0,0,0,0,0,0,0,0,-8,0,0,0,0,0,0,0,0,0,0]} 1. d4 {[%emt 0:00:02]} d5 {[%emt 0:05:25]} 2. c4 {[%emt 0:00:07]} c6 {[%emt 0:00:11]} 3. Nf3 {[%emt 0:00:09]} Nf6 {[%emt 0:00:20]} 4. e3 {[%emt 0:01:46]} Bf5 {[%emt 0:02:48]} 5. Nc3 {[%emt 0:00:09]} e6 {[%emt 0:00:06]} 6. Nh4 {[%emt 0:00:17]} Be4 {[%emt 0:00:05]} 7. f3 {[%emt 0:00:18]} Bg6 {[%emt 0:00:05]} 8. Qb3 {[%emt 0:00:09]} Qc7 {[%emt 0:00:05]} 9. Nxg6 {[%emt 0:02:54]} hxg6 {[%emt 0:00:04]} 10. cxd5 {[%emt 0:00:14]} cxd5 {[%emt 0:14:22][%cal Of8d6]} 11. Bd2 {[%emt 0:00:36]} Nc6 {[%emt 0:00:48][%cal Oa7a6]} 12. O-O-O {[%emt 0:00:16]} Be7 {[%emt 0:08:47]} 13. Kb1 {[%emt 0:00:41]} O-O {[%emt 0:00:07]} 14. h4 {[%emt 0:08:50]} a6 {[%emt 0:01:37]} 15. Bd3 {[%emt 0:05:57]} b5 {[%emt 0:02:15]} 16. Ne2 {[%emt 0:01:01][%cal Oh4h5]} Na5 {[%emt 0:08:20]} 17. Bxa5 {[%emt 0:05:04]} Qxa5 {[%emt 0:00:08]} 18. g4 {[%emt 0:06:53][%cal Bg2g4,Bg4g5][%mdl 32]} Rfc8 {[%emt 0:02:34]} 19. g5 {[%emt 0:00:44]} Nh5 {[%emt 0:00:58]} 20. e4 {[%emt 0:02:05]} Qb4 {[%emt 0:05:51]} 21. Qxb4 {[%emt 0:11:37]} Bxb4 {[%emt 0:00:05]} 22. Bc2 {[%emt 0:00:12]} Rd8 {[%emt 0:05:46]} 23. Bb3 {[%emt 0:03:20]} a5 {[%emt 0:03:58]} 24. a3 {[%emt 0:01:14]} Bf8 {[%emt 0:01:35]} 25. a4 {[%emt 0:04:27]} Rab8 {[%emt 0:05:33][%cal Of8a3]} 26. Rc1 {[%emt 0:01:40]} bxa4 {[%emt 0:05:25]} 27. Bxa4 {[%emt 0:00:03][%cal Bb3a4,Ba4c6,Bc6d5][%mdl 32]} dxe4 {[%emt 0:01:08]} 28. fxe4 {[%emt 0:00:10]} Rb4 {[%emt 0:05:50]} 29. Bc6 {[%emt 0:02:15]} e5 {[%emt 0:00:27][%cal Be6e5,Be5d4][%mdl 32]} 30. Bd5 {[%emt 0:03:33]} (30. dxe5 $2 Rd2 31. Nc3 (31. Rc2 $2 Rxc2 32. Kxc2 Rc4+ 33. Nc3 Rxc6 $19) 31... Rbxb2+ 32. Ka1 Nf4 $19) 30... exd4 {[%emt 0:03:41]} 31. Rh3 {[%emt 0:12:06]} (31. Rhd1 $5 Rdb8 32. Rc2 $17) 31... Kh7 {[%emt 0:14:07]} 32. Rd3 {[%emt 0:21:34]} f5 {[%emt 0:02:29]} 33. Rc6 {[%emt 0:00:12]} Bd6 {[%emt 0:05:25]} ({Vorzuziehen ist} 33... Kh8 $11) 34. exf5 $14 (34. Nxd4 $2 Nf4 35. Rd2 Be5 $19) (34. Rxd4 Rxd4 35. Nxd4 Nf4 $11) 34... gxf5 {[%emt 0:00:01]} 35. Rxd4 {[%emt 0:10:44] Weiß steht aktiver.} (35. Nxd4 Nf4 36. g6+ Kxg6 $17) (35. Bf7 $1 $14 Nf4 (35... g6 $2 36. Rxd4 Rxd4 37. Nxd4 $18) 36. Rxd4 (36. Rxd6 Rxb2+ 37. Ka1 Rxd6 $11) 36... Rxd4 (36... Nxe2 37. Rdxd6 Rf8 38. Bc4 $16) 37. Nxd4) 35... Ng3 {[%emt 0:03:41]} (35... Be5 $1 $11 36. Rxb4 axb4) 36. Rxb4 {[%emt 0:00:52]} (36. Bf7 $1 $14 Nxe2 37. Rdxd6) 36... Bxb4 {[%emt 0:01:18]} (36... axb4 {vereinfacht} 37. Nxg3 Bxg3 38. Be6 Kg6) 37. Bf3 {[%emt 0:04:16]} (37. Nf4 $2 Bd2 38. Rc5 Bxf4 $19) 37... Rd3 {[%emt 0:02:02]} 38. Nxg3 {[%emt 0:01:21] [#] Droht Matt per g6+.} Rxf3 $15 {[%emt 0:00:01][%mdl 4096] Endspiel. KRB-KRN} 39. Nh5 {[%emt 0:00:11]} Rh3 {[%emt 0:00:32]} 40. Rc7 {[%emt 0:00:45]} Rxh4 {[%emt 0:00:43]} 41. Nxg7 {[%emt 0:40:10] Zielt auf Ne6+ ab.} Kg6 {[%emt 0:41:34][%cal Oh4e4] [#] ...Re4! wäre nun fies.} 42. Ne6 {[%emt 0:00:38] Und jetzt Rg7+ wäre schön.} f4 {[%emt 0:00:00] Droht ...f3 und aus.} 43. Rc4 {[%emt 0:00:00]} Bd2 {[%emt 0:00:00]} (43... Kf5 $5 44. Nd4+ $8 Kg6 $11 (44... Kxg5 $2 45. Nf3+ Kg4 46. Nxh4 $18)) 44. Kc2 {[%emt 0:00:00]} Be3 {[%emt 0:00:00]} 45. Ra4 {[%emt 0:00:00]} (45. Rc6 $11) 45... Rh2+ {[%emt 0:00:00]} ({Besser ist} 45... Kf5 $15 46. Nxf4 Bxf4 (46... Rxf4 47. Rxa5+ Kg6 48. Ra6+ Kxg5 49. b4 $15) 47. Rxa5+ Be5) 46. Kd3 $11 {[%emt 0:00:00]} Kf5 {[%emt 0:00:00]} 47. Nxf4 {[%emt 0:00:00]} Bxf4 $15 {[%emt 0:00:00]} 48. Rxa5+ $11 {[%emt 0:00:00] KRB-KR} Kg6 {[%emt 0:00:00]} 49. b4 {[%emt 0:00:00]} Bxg5 {[%emt 0:00:00]} 50. b5 {[%emt 0:00:00]} Rb2 {[%emt 0:00:00]} (50... Rh4 $15 {war vorzuziehen.}) 51. Kc4 {[%emt 0:00:00]} Kf6 {[%emt 0:00:00]} 52. Kc3 {[%emt 0:00:00]} Rb1 {[%emt 0:00:00]} 53. Kc2 {[%emt 0:00:00]} Rc1+ {[%emt 0:00:00]} 54. Kd3 {[%emt 0:00:00]} Ke6 {[%emt 0:00:18]} 55. b6 {[%emt 0:00:00]} Bf4 {[%emt 0:00:02]} 56. Rb5 {[%emt 0:00:00]} Bb8 {[%emt 0:00:06]} 57. b7 {[%emt 0:00:00]} Kd6 {[%emt 0:00:07]} 58. Rb3 {[%emt 0:00:00]} Rg1 {[%emt 0:00:19]} 59. Ke4 {[%emt 0:00:00]} Kc6 {[%emt 0:00:15]} 60. Rc3+ {[%emt 0:00:00]} Kxb7 {[%emt 0:00:11]} (60... Kb6 {wäre vielleicht verwirrender.} 61. Rb3+ Kc7 62. Kd3 Rg8) 61. Rc2 {[%emt 0:00:00]} Rg5 {[%emt 0:01:47]} 62. Rc4 {[%emt 0:00:00]} Bd6 {[%emt 0:00:01]} 63. Rc1 {[%emt 0:00:00]} Bc5 {[%emt 0:00:03]} 64. Rd1 {[%emt 0:00:00]} Kc6 {[%emt 0:00:03]} 65. Rd3 {[%emt 0:00:00]} Bd6 {[%emt 0:00:31]} 66. Rd2 {[%emt 0:00:00]} Re5+ {[%emt 0:01:19]} 67. Kf3 {[%emt 0:00:00]} Rf5+ {[%emt 0:00:19]} 68. Ke4 {[%emt 0:00:00]} Rf4+ {[%emt 0:00:05]} 69. Ke3 {[%emt 0:00:00][%cal Od2d6]} Rh4 {[%emt 0:00:07]} 70. Kf3 {[%emt 0:00:00]} Kd7 {[%emt 0:01:13]} 71. Re2 {[%emt 0:00:00]} Rf4+ {[%emt 0:00:03]} 72. Ke3 {[%emt 0:00:00]} Ke6 {[%emt 0:00:07]} 73. Ra2 {[%emt 0:00:00]} Rc4 {[%emt 0:01:08]} 74. Ra8 {[%emt 0:00:00]} Kd5 {[%emt 0:00:42]} 75. Rd8 {[%emt 0:00:00]} Rc3+ {[%emt 0:00:06]} 76. Kd2 {[%emt 0:00:00]} Rh3 {[%emt 0:00:38]} 77. Ke2 {[%emt 0:00:00]} Ke5 {[%emt 0:00:37]} 78. Re8+ {[%emt 0:00:00]} Kf4 {[%emt 0:00:10]} 79. Re6 {[%emt 0:00:00]} Be5 {[%emt 0:00:05]} 80. Re8 {[%emt 0:00:00]} Ke4 {[%emt 0:00:05]} 81. Re7 {[%emt 0:00:00]} Rh2+ {[%emt 0:01:03]} 82. Ke1 {[%emt 0:00:00]} Kd4 {[%emt 0:00:15]} 83. Kf1 {[%emt 0:00:00]} Bf4 {[%emt 0:00:29]} 84. Re2 {[%emt 0:00:00]} Rh3 {[%emt 0:01:33]} 85. Kg2 {[%emt 0:00:00]} Ra3 {[%emt 0:00:10]} (85... Rg3+ $2 86. Kf2 $19) 86. Re8 {[%emt 0:00:00]} Be5 {[%emt 0:00:07]} (86... Rg3+ $2 87. Kf2 $19) 87. Kf2 {[%emt 0:00:00]} Ke4 {[%emt 0:00:28]} 88. Ke2 {[%emt 0:00:00] Die Stellung ist ausgeglichen.} Ra2+ {[%emt 0:00:08]} 89. Ke1 {[%emt 0:00:00]} Kd4 {[%emt 0:04:41]} 90. Kf1 $1 {[%emt 0:00:00]} Rb2 {[%emt 0:00:58]} 91. Re7 {[%emt 0:00:00]} Bf4 {[%emt 0:00:24]} 92. Re2 {[%emt 0:00:00]} Rb3 {[%emt 0:00:10]} 93. Re8 {[%emt 0:00:00]} Bg3 {[%emt 0:00:40]} 94. Kg2 {[%emt 0:00:00]} Bh4 {[%emt 0:00:17]} 95. Re6 {[%emt 0:00:00]} Bg3 {[%emt 0:00:30]} (95... Rg3+ $2 96. Kf1 $19) 96. Re8 {[%emt 0:00:00]} Be5 {[%emt 0:00:02]} 97. Kf2 {[%emt 0:00:00]} Re3 {[%emt 0:00:17]} ({Keinesfalls} 97... Ke4 98. Ke1 $15) 98. Rd8+ {[%emt 0:00:00]} Ke4 {[%emt 0:00:02]} 99. Rd7 {[%emt 0:00:00]} Bg3+ {[%emt 0:00:55]} 100. Kg2 {[%emt 0:00:00]} Bh4 {[%emt 0:00:01]} 101. Rb7 $1 {[%emt 0:05:05]} Re2+ {[%emt 0:00:31]} 102. Kh3 {[%emt 0:00:57]} Bf6 {[%emt 0:00:10]} 103. Rb4+ {[%emt 0:00:35]} Kf5 {[%emt 0:01:25] ( -> ...Be5)} 104. Kg3 {[%emt 0:00:18] Gewichteter Fehlerwert: Weiß=0.10 (sehr präzise) /Schwarz=0.10 (sehr präzise) .  Fehler:       	Weiß=4     	Schwarz=4     Ungenau:       	Weiß=7     	Schwarz=5     OK:         	Weiß=34    	Schwarz=33    Bester:       	Weiß=5     	Schwarz=1     Stark:        	Weiß=2     	---} 1/2-1/2

[Event "Fagernes Chess GM-Swiss 2024"]
[Site "Fagernes"]
[Date "2024.03.25"]
[Round "2"]
[White "Carlsson, Ludvig"]
[Black "Ghasi, Ameet K"]
[Result "0-1"]
[ECO "E94"]
[WhiteElo "2350"]
[BlackElo "2485"]
[Annotator "TA"]
[PlyCount "78"]
[EventDate "2024.03.25"]
[EventType "swiss"]
[EventCountry "NOR"]
[SourceTitle "playchess.com"]
[Source "ChessBase"]
[SourceQuality "1"]
[TimeControl "40/6000+30:2400+30"]

{[%evp 15,77,36,54,21,51,49,47,32,69,56,72,64,72,64,72,27,57,12,19,0,0,-19,-5,0,0,0,0,0,0,0,0,0,0,-35,22,-50,-40,-45,-52,-63,-44,-250,-233,-233,-232,-348,-360,-353,-356,-334,-364,-362,-349,-354,-335,-583,-564,-583,-573,-585,-497,-29998,-29999,-29999]} 1. d4 {[%emt 0:00:04]} Nf6 {[%emt 0:01:56]} 2. Nf3 {[%emt 0:00:10]} g6 {[%emt 0:00:04]} 3. c4 {[%emt 0:00:10]} Bg7 {[%emt 0:00:06]} 4. Nc3 {[%emt 0:00:05]} O-O {[%emt 0:00:25]} 5. e4 {[%emt 0:00:04]} d6 {[%emt 0:00:06]} 6. Be2 {[%emt 0:00:07]} Nbd7 {[%emt 0:00:05]} 7. O-O {[%emt 0:00:13]} e5 {[%emt 0:00:03]} 8. Qc2 {[%emt 0:00:08]} Qe7 {[%emt 0:04:07]} 9. dxe5 {[%emt 0:00:27]} dxe5 {[%emt 0:00:35]} 10. Nd5 {[%emt 0:00:09]} Qd8 {[%emt 0:03:29]} 11. Rd1 {[%emt 0:04:50] White is slightly better.} Re8 {[%emt 0:19:32]} 12. b4 {[%emt 0:12:54]} c6 {[%emt 0:30:48]} 13. Nxf6+ {[%emt 0:02:46]} Bxf6 {[%emt 0:00:13]} 14. c5 {[%emt 0:00:27]} Qe7 {[%emt 0:02:01]} 15. Bh6 {[%emt 0:01:14]} Nf8 {[%emt 0:10:05]} 16. Bxf8 {[%emt 0:00:32]} Rxf8 {[%emt 0:11:10]} 17. Rd6 {[%emt 0:01:08]} a5 {[%emt 0:02:09]} 18. Qc3 {[%emt 0:04:59]} axb4 {[%emt 0:01:18]} 19. Qxb4 {[%emt 0:00:07]} Kg7 {[%emt 0:02:13]} 20. Nd2 {[%emt 0:02:01][%cal Bf3d2,Bd2c4,Bc4b6][%mdl 32]} Qc7 {[%emt 0:01:32]} 21. Nc4 {[%emt 0:00:08]} Be6 {[%emt 0:03:00]} 22. Nb6 {[%emt 0:01:22]} Rad8 {[%emt 0:00:19]} 23. Rad1 {[%emt 0:11:41]} Be7 {[%emt 0:05:10]} ({But not} 23... Bxa2 $6 24. Nd7 Be6 25. Nxf8 Rxf8 26. Qa3 $16 (26. Bc4 Bg4 $16)) 24. a4 {[%emt 0:00:22][%cal Oa4a5]} Kg8 {[%emt 0:04:17] [#]} (24... Bxd6 $15 25. cxd6 c5) 25. a5 {[%emt 0:07:18]} Bxd6 $15 {[%emt 0:00:37]} 26. cxd6 {[%emt 0:00:05]} c5 $1 {[%emt 0:00:34]} 27. Qd2 {[%emt 0:02:37]} Qc6 {[%emt 0:00:17][%cal Oe6b3]} 28. f3 $2 {[%emt 0:00:56] White does not recover from this.} ({Better is} 28. d7 $1 $15) 28... c4 {[%emt 0:01:37]} 29. Qb4 {[%emt 0:03:01]} c3 {[%emt 0:01:11] ...c2 is the strong threat.} 30. Bb5 {[%emt 0:00:21]} (30. d7 $142 c2 (30... Bxd7 $2 31. Rc1 $19) 31. Rc1 Bxd7 32. Qc4) 30... c2 $19 {[%emt 0:00:19]} 31. Rc1 {[%emt 0:00:03]} Qxd6 {[%emt 0:00:47]} 32. Qxd6 {[%emt 0:00:06]} Rxd6 {[%emt 0:00:01]} 33. Rxc2 {[%emt 0:00:07]} Rd1+ {[%emt 0:00:53]} 34. Kf2 {[%emt 0:00:21]} Rfd8 {[%emt 0:03:25]} 35. Rc7 $2 {[%emt 0:00:16]} (35. Kg3 {was called for.}) 35... R8d2+ {[%emt 0:00:44]} 36. Ke3 {[%emt 0:00:25]} Rb2 {[%emt 0:00:59]} 37. Ba4 {[%emt 0:02:12]} Ra1 {[%emt 0:00:07] ( -> ...Ra3+)} 38. Bd7 {[%emt 0:00:04] [#]} (38. Rc2 $19 Rxc2 39. Bxc2) 38... Ra3+ {[%emt 0:00:08]} 39. Rc3 {[%emt 0:00:09]} Rxc3# {[%emt 0:00:04] Weighted Error Value: White=0.61/Black=0.15 (very precise) .  Loses game:     	White=1     	---        Mistake:       	White=4     	Black=1      Inaccurate:     	White=3     	Black=3      OK:         	White=12    	Black=14     Best:        	---       	Black=2      Strong:       	---       	Black=1} 0-1

[Event "Fagernes Chess GM-Swiss 2024"]
[Site "Fagernes"]
[Date "2024.03.25"]
[Round "2"]
[White "Elmi, Saad Abobaker"]
[Black "Hillarp Persson, Tiger"]
[Result "1-0"]
[ECO "B90"]
[WhiteElo "2344"]
[BlackElo "2473"]
[Annotator "TA"]
[PlyCount "81"]
[EventDate "2024.03.25"]
[EventType "swiss"]
[EventCountry "NOR"]
[SourceTitle "playchess.com"]
[Source "ChessBase"]
[SourceQuality "1"]
[TimeControl "40/6000+30:2400+30"]

{[%evp 12,81,14,8,23,19,27,27,39,-15,-4,-9,-10,-4,-18,-25,-12,-9,-6,-8,8,-42,-41,-72,-71,-100,-99,-111,-80,-109,-63,-61,-31,-29,-43,-37,-29,-28,-22,-21,122,117,145,148,148,148,134,127,132,132,161,147,153,129,153,107,149,0,136,141,165,165,182,160,181,174,358,358,566,572,644,395]} 1. e4 {[%emt 0:00:30]} c5 {[%emt 0:04:02]} 2. Nf3 {[%emt 0:00:15]} d6 {[%emt 0:00:05]} 3. d4 {[%emt 0:00:14]} cxd4 {[%emt 0:00:07]} 4. Nxd4 {[%emt 0:00:11]} Nf6 {[%emt 0:00:07]} 5. Nc3 {[%emt 0:00:15]} a6 {[%emt 0:00:05]} 6. h3 {[%emt 0:01:31]} e5 {[%emt 0:02:48]} 7. Nde2 {[%emt 0:00:22]} h5 {[%emt 0:01:42]} 8. g3 {[%emt 0:01:17]} Be7 {[%emt 0:09:18]} 9. Bg2 {[%emt 0:00:47]} b5 {[%emt 0:00:32] White has an edge.} 10. a4 {[%emt 0:06:00]} ({White should try} 10. Nd5 $14) 10... b4 $11 {[%emt 0:02:31]} 11. Nd5 {[%emt 0:00:08]} Nxd5 {[%emt 0:00:09]} 12. Qxd5 {[%emt 0:00:23]} Ra7 {[%emt 0:00:25]} 13. Be3 {[%emt 0:01:41]} Be6 {[%emt 0:00:19]} 14. Qd3 {[%emt 0:05:35]} Rb7 {[%emt 0:00:11]} 15. f4 {[%emt 0:01:44]} f6 {[%emt 0:13:12]} 16. Kf2 {[%emt 0:11:44]} (16. f5 $11 Bf7 17. b3) 16... Qc8 $15 {[%emt 0:04:21]} 17. Rac1 {[%emt 0:34:22]} Nd7 {[%emt 0:05:07]} 18. f5 {[%emt 0:05:04]} Nc5 {[%emt 0:08:06]} 19. Qd2 {[%emt 0:08:42]} Bd7 {[%emt 0:02:56]} 20. b3 {[%emt 0:03:05]} Qc6 {[%emt 0:31:54]} (20... Bc6 $17 21. Bxc5 dxc5) 21. Qd5 {[%emt 0:01:06]} Qxd5 {[%emt 0:00:23]} (21... Rc7 {keeps more tension.} 22. g4 h4 23. Bf3 a5) 22. exd5 {[%emt 0:00:07]} Rc7 {[%emt 0:00:11]} (22... Bxf5 23. Bxc5 h4 (23... dxc5 24. d6 $14) 24. Be3 $18) 23. g4 {[%emt 0:00:25]} h4 {[%emt 0:00:36][%cal Og7g6] Dodges Ng3} 24. Bxc5 {[%emt 0:04:39]} Rxc5 {[%emt 0:02:15]} 25. c3 {[%emt 0:04:20][%cal Bc2c3,Bc3b4][%mdl 32]} Kf7 {[%emt 0:04:49]} (25... bxc3 $11 26. Nxc3 Bd8) 26. cxb4 $16 {[%emt 0:01:57]} Rxc1 {[%emt 0:00:13]} 27. Rxc1 {[%emt 0:00:05]} Rb8 {[%emt 0:00:06]} 28. Rc4 {[%emt 0:00:26]} Bd8 {[%emt 0:00:15]} 29. Be4 {[%emt 0:00:36]} Bb6+ {[%emt 0:02:44]} 30. Ke1 {[%emt 0:00:49]} Be3 {[%emt 0:01:25]} 31. Kd1 {[%emt 0:00:26]} Ke7 {[%emt 0:00:33]} 32. Kc2 {[%emt 0:00:29]} Bf2 {[%emt 0:03:47]} 33. Nc1 {[%emt 0:04:11]} ({White should play} 33. Bd3) 33... Be3 {[%emt 0:01:07]} 34. Ne2 {[%emt 0:01:59]} Bf2 $1 {[%emt 0:00:12]} 35. Bd3 {[%emt 0:01:23]} Be1 {[%emt 0:03:30] [#]} 36. Nc3 $1 {[%emt 0:00:33]} Bf2 {[%emt 0:07:45]} 37. Re4 {[%emt 0:03:14]} Bd4 {[%emt 0:00:33] [#]} 38. Ne2 $1 $36 {[%emt 0:00:41][%mdl 2048] Black is under strong pressure.} ({Resist} 38. Bxa6 g6) 38... Rc8+ $2 {[%emt 0:00:36]} (38... Bb6 39. Bxa6 g6) 39. Kd2 $18 {[%emt 0:00:21]} Bb2 {[%emt 0:00:12]} (39... Bb6 {was worth a try.} 40. a5 (40. Bxa6 Ra8 $18) 40... Bf2 41. Bxa6 Ra8) 40. Bxa6 {[%emt 0:00:13]} Rc7 {[%emt 0:00:36]} 41. Bc4 {[%emt 0:40:57] Weighted Error Value: White=0.14 (very precise) /Black=0.30.  Mistake:       	White=3     	Black=4      Inaccurate:     	White=3     	Black=2      OK:         	White=14    	Black=11     Best:        	White=3     	---        Strong:       	White=1     	Black=1} 1-0